fUSD/lending_fUSD_20260606
["ID","MTS","AMOUNT","RATE_DAILY","PERIOD"]
[424258464,1780707069000,-227.943,0.000377,19]
[424258516,1780707069000,-156.7,0.00037808,2]
[424258467,1780707069000,-151.0,0.00037705,14]
[424258498,1780707069000,-1000.0,0.00037714,60]
[424258508,1780707069000,-250.0,0.00037784,2]
[424258501,1780707069000,-150.0,0.00037751,120]
[424258503,1780707069000,-5000.0,0.00037784,2]
[424258506,1780707069000,-5000.0,0.00037784,2]
[424258500,1780707069000,-2000.0,0.00037749,2]
[424258507,1780707069000,-250.0,0.00037784,2]
[424258502,1780707069000,-993.57,0.00037781,7]
[424258505,1780707069000,-5000.0,0.00037784,2]
[424258504,1780707069000,-5000.0,0.00037784,2]
[424258510,1780707069000,-250.0,0.00037784,2]
[424258518,1780707069000,-1338.0,0.00037808,2]
[424258512,1780707069000,-150.0,0.0003779,120]
[424258509,1780707069000,-250.0,0.00037784,2]
[424258517,1780707069000,-160.09,0.00037808,2]
[424258515,1780707069000,-164.0,0.00037805,11]
[424258519,1780707069000,-408.0,0.00037808,2]
[424258520,1780707069000,-1356.0,0.00037808,2]
[424258511,1780707069000,-1121.85257231,0.00037787,60]
[424258513,1780707069000,-151.87334371,0.00037798,2]
[424258521,1780707069000,-151.0,0.00037808,30]
[424258523,1780707069000,-153.569121,0.00037808,30]
[424258525,1780707069000,-151.0,0.00037808,30]
[424258524,1780707069000,-151.0,0.00037808,30]
[424258522,1780707069000,-151.0,0.00037808,30]
[424258526,1780707069000,-151.0,0.00037808,30]
[424258472,1780707069000,-261.473768,0.00037708,2]
[424258499,1780707069000,-33256.6326,0.00037749,2]
[424258489,1780707069000,-342.280518,0.00037708,30]
[424258514,1780707069000,-190.57559559,0.00037801,2]
[424258490,1780707069000,-151.0,0.00037708,30]
[424258469,1780707069000,-261.473768,0.00037708,2]
[424258488,1780707069000,-2126.765351,0.00037708,30]
[424258468,1780707069000,-151.0,0.00037708,30]
[424258471,1780707069000,-261.473768,0.00037708,2]
[424258470,1780707069000,-261.473768,0.00037708,2]
[424258466,1780707069000,-164.5,0.000377,2]
[424258473,1780707069000,-151.0,0.00037708,30]
[424258475,1780707069000,-151.0,0.00037708,30]
[424258474,1780707069000,-151.0,0.00037708,30]
[424258483,1780707069000,-432.548374,0.00037708,30]
[424258482,1780707069000,-432.548374,0.00037708,30]
[424258479,1780707069000,-194.091505,0.00037708,30]
[424258481,1780707069000,-432.548374,0.00037708,30]
[424258478,1780707069000,-194.091505,0.00037708,30]
[424258484,1780707069000,-432.548374,0.00037708,30]
[424258476,1780707069000,-172.332133,0.00037708,30]
[424258491,1780707069000,-342.280518,0.00037708,30]
[424258487,1780707069000,-2126.765351,0.00037708,30]
[424258485,1780707069000,-2126.765351,0.00037708,30]
[424258495,1780707069000,-342.280518,0.00037708,30]
[424258492,1780707069000,-151.0,0.00037708,30]
[424258496,1780707069000,-1500000.0,0.00037708,2]
[424258486,1780707069000,-2126.765351,0.00037708,30]
[424258494,1780707069000,-151.0,0.00037708,30]
[424258497,1780707069000,-150.0,0.00037712,120]
[424258480,1780707069000,-194.091505,0.00037708,30]
[424258477,1780707069000,-194.091505,0.00037708,30]
[424258493,1780707069000,-342.280518,0.00037708,30]
[424258561,1780707070000,-151.0,0.00037808,30]
[424258569,1780707070000,-151.0,0.00037808,30]
[424258568,1780707070000,-151.0,0.00037808,30]
[424258570,1780707070000,-151.0,0.00037808,30]
[424258571,1780707070000,-151.0,0.00037808,30]
[424258567,1780707070000,-151.0,0.00037808,30]
[424258562,1780707070000,-216.620737,0.00037808,30]
[424258564,1780707070000,-151.0,0.00037808,30]
[424258565,1780707070000,-151.0,0.00037808,30]
[424258563,1780707070000,-151.0,0.00037808,30]
[424258553,1780707070000,-761.888544,0.00037808,30]
[424258583,1780707070000,-151.0,0.00037808,30]
[424258566,1780707070000,-151.0,0.00037808,30]
[424258573,1780707070000,-286.546088,0.00037808,30]
[424258589,1780707070000,-871.633232,0.00037808,30]
[424258575,1780707070000,-286.546088,0.00037808,30]
[424258572,1780707070000,-210.364772,0.00037808,30]
[424258574,1780707070000,-286.546088,0.00037808,30]
[424258581,1780707070000,-151.0,0.00037808,30]
[424258580,1780707070000,-286.546088,0.00037808,30]
[424258578,1780707070000,-286.546088,0.00037808,30]
[424258577,1780707070000,-286.546088,0.00037808,30]
[424258582,1780707070000,-151.0,0.00037808,30]
[424258576,1780707070000,-286.546088,0.00037808,30]
[424258579,1780707070000,-286.546088,0.00037808,30]
[424258588,1780707070000,-871.633232,0.00037808,30]
[424258587,1780707070000,-871.633232,0.00037808,30]
[424258585,1780707070000,-151.0,0.00037808,30]
[424258557,1780707070000,-761.888544,0.00037808,30]
[424258584,1780707070000,-151.0,0.00037808,30]
[424258554,1780707070000,-761.888544,0.00037808,30]
[424258531,1780707070000,-151.0,0.00037808,30]
[424258556,1780707070000,-761.888544,0.00037808,30]
[424258591,1780707070000,-871.633232,0.00037808,30]
[424258532,1780707070000,-151.0,0.00037808,30]
[424258534,1780707070000,-151.0,0.00037808,30]
[424258535,1780707070000,-151.0,0.00037808,30]
[424258533,1780707070000,-151.0,0.00037808,30]
[424258529,1780707070000,-151.0,0.00037808,30]
[424258528,1780707070000,-151.0,0.00037808,30]
[424258530,1780707070000,-248.189265,0.00037808,30]
[424258527,1780707070000,-151.0,0.00037808,30]
[424258536,1780707070000,-156.610561,0.00037808,30]
[424258538,1780707070000,-151.0,0.00037808,30]
[424258537,1780707070000,-151.0,0.00037808,30]
[424258541,1780707070000,-151.0,0.00037808,30]
[424258547,1780707070000,-1684.513686,0.00037808,30]
[424258539,1780707070000,-168.928343,0.00037808,30]
[424258543,1780707070000,-1684.513686,0.00037808,30]
[424258542,1780707070000,-1684.513686,0.00037808,30]
[424258540,1780707070000,-151.0,0.00037808,30]
[424258548,1780707070000,-1684.513686,0.00037808,30]
[424258544,1780707070000,-1684.513686,0.00037808,30]
[424258546,1780707070000,-1684.513686,0.00037808,30]
[424258545,1780707070000,-1684.513686,0.00037808,30]
[424258550,1780707070000,-761.888544,0.00037808,30]
[424258559,1780707070000,-151.0,0.00037808,30]
[424258558,1780707070000,-151.0,0.00037808,30]
[424258551,1780707070000,-761.888544,0.00037808,30]
[424258549,1780707070000,-1684.513686,0.00037808,30]
[424258555,1780707070000,-761.888544,0.00037808,30]
[424258560,1780707070000,-151.0,0.00037808,30]
[424258552,1780707070000,-761.888544,0.00037808,30]
[424258590,1780707070000,-871.633232,0.00037808,30]
[424258641,1780707070000,-286.173997,0.00037808,30]
[424258586,1780707070000,-151.0,0.00037808,30]
[424258627,1780707070000,-622.821157,0.00037808,30]
[424258637,1780707070000,-276.530525,0.00037808,30]
[424258638,1780707070000,-276.530525,0.00037808,30]
[424258626,1780707070000,-1322.17485,0.00037808,30]
[424258628,1780707070000,-1322.17485,0.00037808,30]
[424258629,1780707070000,-622.821157,0.00037808,30]
[424258630,1780707070000,-622.821157,0.00037808,30]
[424258632,1780707070000,-276.530525,0.00037808,30]
[424258636,1780707070000,-151.0,0.00037808,30]
[424258634,1780707070000,-276.530525,0.00037808,30]
[424258631,1780707070000,-276.530525,0.00037808,30]
[424258635,1780707070000,-151.0,0.00037808,30]
[424258633,1780707070000,-151.0,0.00037808,30]
[424258639,1780707070000,-276.530525,0.00037808,30]
[424258643,1780707070000,-276.530525,0.00037808,30]
[424258655,1780707070000,-1502.447356,0.00037808,30]
[424258652,1780707070000,-1502.447356,0.00037808,30]
[424258642,1780707070000,-276.530525,0.00037808,30]
[424258650,1780707070000,-1502.447356,0.00037808,30]
[424258651,1780707070000,-1502.447356,0.00037808,30]
[424258640,1780707070000,-151.0,0.00037808,30]
[424258647,1780707070000,-276.530525,0.00037808,30]
[424258646,1780707070000,-276.530525,0.00037808,30]
[424258648,1780707070000,-151.0,0.00037808,30]
[424258645,1780707070000,-276.530525,0.00037808,30]
[424258644,1780707070000,-276.530525,0.00037808,30]
[424258649,1780707070000,-157.271962,0.00037808,30]
[424258654,1780707070000,-1502.447356,0.00037808,30]
[424258653,1780707070000,-1502.447356,0.00037808,30]
[424258622,1780707070000,-1322.17485,0.00037808,30]
[424258620,1780707070000,-622.821157,0.00037808,30]
[424258592,1780707070000,-871.633232,0.00037808,30]
[424258619,1780707070000,-1322.17485,0.00037808,30]
[424258621,1780707070000,-151.0,0.00037808,30]
[424258596,1780707070000,-151.0,0.00037808,30]
[424258595,1780707070000,-151.0,0.00037808,30]
[424258594,1780707070000,-871.633232,0.00037808,30]
[424258593,1780707070000,-871.633232,0.00037808,30]
[424258597,1780707070000,-151.0,0.00037808,30]
[424258598,1780707070000,-1322.17485,0.00037808,30]
[424258600,1780707070000,-622.821157,0.00037808,30]
[424258612,1780707070000,-151.0,0.00037808,30]
[424258610,1780707070000,-1322.17485,0.00037808,30]
[424258602,1780707070000,-622.821157,0.00037808,30]
[424258608,1780707070000,-1322.17485,0.00037808,30]
[424258603,1780707070000,-151.0,0.00037808,30]
[424258601,1780707070000,-1322.17485,0.00037808,30]
[424258611,1780707070000,-622.821157,0.00037808,30]
[424258605,1780707070000,-151.0,0.00037808,30]
[424258599,1780707070000,-1322.17485,0.00037808,30]
[424258615,1780707070000,-151.0,0.00037808,30]
[424258624,1780707070000,-622.821157,0.00037808,30]
[424258618,1780707070000,-151.0,0.00037808,30]
[424258617,1780707070000,-1322.17485,0.00037808,30]
[424258614,1780707070000,-151.0,0.00037808,30]
[424258625,1780707070000,-1322.17485,0.00037808,30]
[424258623,1780707070000,-622.821157,0.00037808,30]
[424258613,1780707070000,-622.821157,0.00037808,30]
[424258607,1780707070000,-1322.17485,0.00037808,30]
[424258604,1780707070000,-622.821157,0.00037808,30]
[424258609,1780707070000,-622.821157,0.00037808,30]
[424258606,1780707070000,-151.0,0.00037808,30]
[424258616,1780707070000,-151.0,0.00037808,30]
[424258700,1780707071000,-162.504604,0.00037808,30]
[424258701,1780707071000,-162.504604,0.00037808,30]
[424258698,1780707071000,-162.504604,0.00037808,30]
[424258692,1780707071000,-162.504604,0.00037808,30]
[424258699,1780707071000,-162.504604,0.00037808,30]
[424258686,1780707071000,-1287.378784,0.00037808,30]
[424258696,1780707071000,-162.504604,0.00037808,30]
[424258694,1780707071000,-151.0,0.00037808,30]
[424258695,1780707071000,-151.300052,0.00037808,30]
[424258693,1780707071000,-162.504604,0.00037808,30]
[424258691,1780707071000,-162.504604,0.00037808,30]
[424258712,1780707071000,-416.188353,0.00037808,30]
[424258697,1780707071000,-162.504604,0.00037808,30]
[424258704,1780707071000,-416.188353,0.00037808,30]
[424258717,1780707071000,-238.116691,0.00037808,30]
[424258703,1780707071000,-416.188353,0.00037808,30]
[424258711,1780707071000,-416.188353,0.00037808,30]
[424258714,1780707071000,-238.116691,0.00037808,30]
[424258713,1780707071000,-416.188353,0.00037808,30]
[424258707,1780707071000,-416.188353,0.00037808,30]
[424258706,1780707071000,-416.188353,0.00037808,30]
[424258710,1780707071000,-416.188353,0.00037808,30]
[424258708,1780707071000,-416.188353,0.00037808,30]
[424258709,1780707071000,-416.188353,0.00037808,30]
[424258705,1780707071000,-416.188353,0.00037808,30]
[424258719,1780707071000,-238.116691,0.00037808,30]
[424258715,1780707071000,-238.116691,0.00037808,30]
[424258720,1780707071000,-400.0,0.00037808,30]
[424258688,1780707071000,-2089.359127,0.00037808,30]
[424258702,1780707071000,-416.188353,0.00037808,30]
[424258685,1780707071000,-162.504604,0.00037808,30]
[424258674,1780707071000,-2089.359127,0.00037808,30]
[424258684,1780707071000,-1287.378784,0.00037808,30]
[424258718,1780707071000,-238.116691,0.00037808,30]
[424258665,1780707071000,-2089.359127,0.00037808,30]
[424258656,1780707071000,-1287.378784,0.00037808,30]
[424258658,1780707071000,-1502.447356,0.00037808,30]
[424258657,1780707071000,-1287.378784,0.00037808,30]
[424258663,1780707071000,-156.016241,0.00037808,30]
[424258660,1780707071000,-1502.447356,0.00037808,30]
[424258659,1780707071000,-1287.378784,0.00037808,30]
[424258662,1780707071000,-2089.359127,0.00037808,30]
[424258661,1780707071000,-1502.447356,0.00037808,30]
[424258666,1780707071000,-1287.378784,0.00037808,30]
[424258669,1780707071000,-1287.378784,0.00037808,30]
[424258668,1780707071000,-1502.447356,0.00037808,30]
[424258673,1780707071000,-1287.378784,0.00037808,30]
[424258667,1780707071000,-2089.359127,0.00037808,30]
[424258671,1780707071000,-1502.447356,0.00037808,30]
[424258675,1780707071000,-1287.378784,0.00037808,30]
[424258670,1780707071000,-1502.447356,0.00037808,30]
[424258676,1780707071000,-2089.359127,0.00037808,30]
[424258672,1780707071000,-2089.359127,0.00037808,30]
[424258677,1780707071000,-1287.378784,0.00037808,30]
[424258679,1780707071000,-2089.359127,0.00037808,30]
[424258678,1780707071000,-251.0,0.00037808,30]
[424258682,1780707071000,-1287.378784,0.00037808,30]
[424258680,1780707071000,-2089.359127,0.00037808,30]
[424258681,1780707071000,-2089.359127,0.00037808,30]
[424258690,1780707071000,-2089.359127,0.00037808,30]
[424258689,1780707071000,-2089.359127,0.00037808,30]
[424258683,1780707071000,-162.504604,0.00037808,30]
[424258687,1780707071000,-162.504604,0.00037808,30]
[424258664,1780707071000,-1287.378784,0.00037808,30]
[424258727,1780707071000,-400.0,0.00037808,30]
[424258716,1780707071000,-238.116691,0.00037808,30]
[424258757,1780707071000,-160.835098,0.00037808,30]
[424258768,1780707071000,-181.313747,0.00037808,30]
[424258761,1780707071000,-1543.31254,0.00037808,7]
[424258767,1780707071000,-1091.871311,0.00037808,30]
[424258763,1780707071000,-1543.31254,0.00037808,7]
[424258756,1780707071000,-166.396231,0.00037808,30]
[424258759,1780707071000,-151.0,0.00037808,30]
[424258760,1780707071000,-151.0,0.00037808,30]
[424258762,1780707071000,-1543.31254,0.00037808,7]
[424258765,1780707071000,-1543.31254,0.00037808,7]
[424258758,1780707071000,-151.0,0.00037808,30]
[424258769,1780707071000,-181.313747,0.00037808,30]
[424258766,1780707071000,-165.608309,0.00037808,30]
[424258764,1780707071000,-1091.871311,0.00037808,30]
[424258770,1780707071000,-1091.871311,0.00037808,30]
[424258773,1780707071000,-1543.31254,0.00037808,7]
[424258772,1780707071000,-1091.871311,0.00037808,30]
[424258771,1780707071000,-1543.31254,0.00037808,7]
[424258774,1780707071000,-181.313747,0.00037808,30]
[424258778,1780707071000,-1091.871311,0.00037808,30]
[424258779,1780707071000,-1543.31254,0.00037808,7]
[424258775,1780707071000,-181.313747,0.00037808,30]
[424258782,1780707071000,-532.737278,0.00037808,30]
[424258783,1780707071000,-181.313747,0.00037808,30]
[424258776,1780707071000,-1091.871311,0.00037808,30]
[424258781,1780707071000,-181.313747,0.00037808,30]
[424258780,1780707071000,-532.737278,0.00037808,30]
[424258777,1780707071000,-1543.31254,0.00037808,7]
[424258726,1780707071000,-400.0,0.00037808,30]
[424258752,1780707071000,-166.396231,0.00037808,30]
[424258753,1780707071000,-166.396231,0.00037808,30]
[424258784,1780707071000,-151.0,0.00037808,30]
[424258748,1780707071000,-723.193245,0.00037808,30]
[424258721,1780707071000,-400.0,0.00037808,30]
[424258725,1780707071000,-238.116691,0.00037808,30]
[424258723,1780707071000,-400.0,0.00037808,30]
[424258722,1780707071000,-238.116691,0.00037808,30]
[424258724,1780707071000,-238.116691,0.00037808,30]
[424258729,1780707071000,-238.116691,0.00037808,30]
[424258728,1780707071000,-400.0,0.00037808,30]
[424258739,1780707071000,-253.362122,0.00037808,30]
[424258750,1780707071000,-166.396231,0.00037808,30]
[424258741,1780707071000,-400.0,0.00037808,30]
[424258733,1780707071000,-151.0,0.00037808,30]
[424258732,1780707071000,-400.0,0.00037808,30]
[424258736,1780707071000,-400.0,0.00037808,30]
[424258730,1780707071000,-238.116691,0.00037808,30]
[424258740,1780707071000,-400.0,0.00037808,30]
[424258737,1780707071000,-723.193245,0.00037808,30]
[424258731,1780707071000,-238.116691,0.00037808,30]
[424258746,1780707071000,-723.193245,0.00037808,30]
[424258754,1780707071000,-166.396231,0.00037808,30]
[424258747,1780707071000,-723.193245,0.00037808,30]
[424258743,1780707071000,-723.193245,0.00037808,30]
[424258749,1780707071000,-166.396231,0.00037808,30]
[424258755,1780707071000,-166.396231,0.00037808,30]
[424258745,1780707071000,-723.193245,0.00037808,30]
[424258744,1780707071000,-723.193245,0.00037808,30]
[424258742,1780707071000,-400.0,0.00037808,30]
[424258738,1780707071000,-723.193245,0.00037808,30]
[424258734,1780707071000,-400.0,0.00037808,30]
[424258735,1780707071000,-151.0,0.00037808,30]
[424258751,1780707071000,-166.396231,0.00037808,30]
[424258827,1780707072000,-186.915139,0.00037808,30]
[424258823,1780707072000,-186.915139,0.00037808,30]
[424258829,1780707072000,-470.75516,0.00037808,30]
[424258825,1780707072000,-186.915139,0.00037808,30]
[424258824,1780707072000,-186.915139,0.00037808,30]
[424258821,1780707072000,-520.534854,0.00037808,30]
[424258822,1780707072000,-186.915139,0.00037808,30]
[424258831,1780707072000,-470.75516,0.00037808,30]
[424258819,1780707072000,-186.915139,0.00037808,30]
[424258814,1780707072000,-520.534854,0.00037808,30]
[424258808,1780707072000,-151.0,0.00037808,30]
[424258820,1780707072000,-520.534854,0.00037808,30]
[424258826,1780707072000,-186.915139,0.00037808,30]
[424258841,1780707072000,-151.0,0.00037808,30]
[424258828,1780707072000,-470.75516,0.00037808,30]
[424258832,1780707072000,-470.75516,0.00037808,30]
[424258835,1780707072000,-1219.584576,0.00037808,30]
[424258833,1780707072000,-470.75516,0.00037808,30]
[424258844,1780707072000,-1219.584576,0.00037808,30]
[424258838,1780707072000,-1219.584576,0.00037808,30]
[424258836,1780707072000,-470.75516,0.00037808,30]
[424258834,1780707072000,-1219.584576,0.00037808,30]
[424258837,1780707072000,-470.75516,0.00037808,30]
[424258839,1780707072000,-1219.584576,0.00037808,30]
[424258840,1780707072000,-1219.584576,0.00037808,30]
[424258843,1780707072000,-151.0,0.00037808,30]
[424258842,1780707072000,-1219.584576,0.00037808,30]
[424258818,1780707072000,-186.915139,0.00037808,30]
[424258830,1780707072000,-470.75516,0.00037808,30]
[424258809,1780707072000,-520.534854,0.00037808,30]
[424258799,1780707072000,-151.0,0.00037808,30]
[424258811,1780707072000,-520.534854,0.00037808,30]
[424258857,1780707072000,-196.858265,0.00037808,30]
[424258785,1780707072000,-1091.871311,0.00037808,30]
[424258795,1780707072000,-151.0,0.00037808,30]
[424258788,1780707072000,-532.737278,0.00037808,30]
[424258790,1780707072000,-532.737278,0.00037808,30]
[424258787,1780707072000,-299.447072,0.00037808,30]
[424258786,1780707072000,-1091.871311,0.00037808,30]
[424258789,1780707072000,-181.313747,0.00037808,30]
[424258794,1780707072000,-532.737278,0.00037808,30]
[424258791,1780707072000,-181.313747,0.00037808,30]
[424258792,1780707072000,-151.0,0.00037808,30]
[424258793,1780707072000,-151.0,0.00037808,30]
[424258797,1780707072000,-151.0,0.00037808,30]
[424258815,1780707072000,-520.534854,0.00037808,30]
[424258796,1780707072000,-532.737278,0.00037808,30]
[424258800,1780707072000,-151.0,0.00037808,30]
[424258805,1780707072000,-151.0,0.00037808,30]
[424258801,1780707072000,-532.737278,0.00037808,30]
[424258804,1780707072000,-151.0,0.00037808,30]
[424258803,1780707072000,-532.737278,0.00037808,30]
[424258802,1780707072000,-203.294943,0.00037808,30]
[424258806,1780707072000,-151.0,0.00037808,30]
[424258810,1780707072000,-151.0,0.00037808,30]
[424258807,1780707072000,-151.0,0.00037808,30]
[424258812,1780707072000,-151.0,0.00037808,30]
[424258817,1780707072000,-520.534854,0.00037808,30]
[424258816,1780707072000,-520.534854,0.00037808,30]
[424258813,1780707072000,-151.0,0.00037808,30]
[424258798,1780707072000,-151.0,0.00037808,30]
[424258856,1780707072000,-196.858265,0.00037808,30]
[424258854,1780707072000,-196.858265,0.00037808,30]
[424258845,1780707072000,-196.858265,0.00037808,30]
[424258880,1780707072000,-150.0,0.00037908,120]
[424258881,1780707072000,-5000.0,0.00037926,7]
[424258883,1780707072000,-5000.0,0.00037951,7]
[424258888,1780707072000,-150.0,0.00037986,120]
[424258886,1780707072000,-323.19,0.00037975,120]
[424258893,1780707072000,-2568.0,0.00038,120]
[424258890,1780707072000,-151.87334371,0.00037998,2]
[424258891,1780707072000,-164.0,0.00037999,11]
[424258896,1780707072000,-786.0,0.00038,30]
[424258895,1780707072000,-786.0,0.00038,30]
[424258894,1780707072000,-166.66227481,0.00038,120]
[424258885,1780707072000,-993.57,0.00037972,7]
[424258892,1780707072000,-412.5,0.00038,30]
[424258882,1780707072000,-150.0,0.00037947,120]
[424258889,1780707072000,-5000.0,0.00037989,2]
[424258897,1780707072000,-786.0,0.00038,30]
[424258900,1780707072000,-718.0,0.00038,2]
[424258899,1780707072000,-173.0,0.00038,30]
[424258902,1780707072000,-469.0,0.00038,30]
[424258901,1780707072000,-1369.62890625,0.00038,2]
[424258908,1780707072000,-242.64770994,0.00038,16]
[424258906,1780707072000,-500.0,0.00038,120]
[424258907,1780707072000,-174.73297243,0.00038,30]
[424258903,1780707072000,-151.0,0.00038,120]
[424258904,1780707072000,-151.0,0.00038,60]
[424258905,1780707072000,-1373.7,0.00038,14]
[424258909,1780707072000,-170.74298237,0.00038,16]
[424258846,1780707072000,-196.858265,0.00037808,30]
[424258884,1780707072000,-400.0,0.0003797,2]
[424258879,1780707072000,-5000.0,0.00037907,2]
[424258887,1780707072000,-5000.0,0.00037976,7]
[424258877,1780707072000,-2110.0,0.000379,2]
[424258878,1780707072000,-5000.0,0.00037901,7]
[424258849,1780707072000,-151.0,0.00037808,30]
[424258847,1780707072000,-1219.584576,0.00037808,30]
[424258898,1780707072000,-778.0,0.00038,30]
[424258850,1780707072000,-196.858265,0.00037808,30]
[424258855,1780707072000,-196.858265,0.00037808,30]
[424258851,1780707072000,-196.858265,0.00037808,30]
[424258852,1780707072000,-151.0,0.00037808,30]
[424258848,1780707072000,-151.0,0.00037808,30]
[424258860,1780707072000,-220.205265,0.00037808,30]
[424258858,1780707072000,-220.205265,0.00037808,30]
[424258861,1780707072000,-641.0,0.00037816,13]
[424258862,1780707072000,-12969.11848382,0.00037824,2]
[424258863,1780707072000,-5000.0,0.00037825,2]
[424258853,1780707072000,-151.0,0.00037808,30]
[424258875,1780707072000,-151.87334371,0.00037898,2]
[424258876,1780707072000,-700.0,0.000379,13]
[424258864,1780707072000,-5000.0,0.00037825,7]
[424258874,1780707072000,-1592.0,0.00037878,11]
[424258873,1780707072000,-5000.0,0.00037876,7]
[424258872,1780707072000,-150.0,0.00037869,120]
[424258869,1780707072000,-1592.0,0.00037849,11]
[424258871,1780707072000,-291.15064701,0.00037867,10]
[424258867,1780707072000,-150.0,0.00037829,120]
[424258859,1780707072000,-220.205265,0.00037808,30]
[424258868,1780707072000,-150.0,0.00037837,7]
[424258866,1780707072000,-1075.96,0.00037825,120]
[424258865,1780707072000,-1075.96,0.00037825,30]
[424258870,1780707072000,-5000.0,0.0003785,7]
[424258952,1780707073000,-1651.81367706,0.00038091,7]
[424258955,1780707073000,-1776.30922209,0.00038091,7]
[424258954,1780707073000,-2005.9555727,0.00038091,7]
[424258951,1780707073000,-1934.38338736,0.00038091,7]
[424258953,1780707073000,-1712.93078311,0.00038091,7]
[424258950,1780707073000,-1592.87721992,0.00038091,7]
[424258936,1780707073000,-1148.61238259,0.00038091,7]
[424258942,1780707073000,-1328.27659266,0.00038091,7]
[424258944,1780707073000,-1377.42282658,0.00038091,7]
[424258949,1780707073000,-1536.04360648,0.00038091,7]
[424258938,1780707073000,-1613.0535,0.00038091,7]
[424258956,1780707073000,-1842.0326633,0.00038091,7]
[424258943,1780707073000,-1734.62772924,0.00038091,7]
[424258960,1780707073000,-1980.8648231,0.00038091,7]
[424258968,1780707073000,-2781.82699784,0.00038091,7]
[424258963,1780707073000,-2319.72410669,0.00038091,7]
[424258962,1780707073000,-2236.95670847,0.00038091,7]
[424258961,1780707073000,-2054.15682156,0.00038091,7]
[424258957,1780707073000,-2080.17592889,0.00038091,7]
[424258958,1780707073000,-1910.18787185,0.00038091,7]
[424258964,1780707073000,-2405.55389863,0.00038091,7]
[424258977,1780707073000,-5000.0,0.00038102,7]
[424258965,1780707073000,-2494.55939288,0.00038091,7]
[424258975,1780707073000,-150.0,0.000381,30]
[424258976,1780707073000,-1183.9012,0.000381,120]
[424258967,1780707073000,-2682.57183977,0.00038091,7]
[424258966,1780707073000,-2586.85809042,0.00038091,7]
[424258970,1780707073000,-2991.49051684,0.00038091,7]
[424258939,1780707073000,-1235.18214925,0.00038091,7]
[424258959,1780707073000,-2157.14243826,0.00038091,7]
[424258940,1780707073000,-1280.88388877,0.00038091,7]
[424258911,1780707073000,-5000.0,0.00038001,7]
[424258946,1780707073000,-1798.80895522,0.00038091,7]
[424258971,1780707073000,-151.87334371,0.00038098,2]
[424258922,1780707073000,-1774.12734204,0.00038036,30]
[424258919,1780707073000,-150.0,0.00038036,30]
[424258921,1780707073000,-150.0,0.00038036,30]
[424258914,1780707073000,-217035.0,0.00038018,60]
[424258910,1780707073000,-1061.0,0.00038,7]
[424258913,1780707073000,-1000.0,0.00038016,60]
[424258912,1780707073000,-1000.0,0.00038006,60]
[424258915,1780707073000,-7197.41,0.00038018,2]
[424258920,1780707073000,-3091.59014075,0.00038036,30]
[424258917,1780707073000,-150.0,0.00038026,120]
[424258918,1780707073000,-5000.0,0.00038026,7]
[424258916,1780707073000,-350.0,0.0003802,5]
[424258925,1780707073000,-150.0,0.00038063,7]
[424258923,1780707073000,-200.0,0.00038048,10]
[424258924,1780707073000,-5000.0,0.00038052,7]
[424258935,1780707073000,-1107.63007,0.00038091,7]
[424258929,1780707073000,-190.57559559,0.00038078,2]
[424258932,1780707073000,-1500.0,0.00038091,7]
[424258928,1780707073000,-5000.0,0.00038077,7]
[424258931,1780707073000,-1030.0,0.00038091,7]
[424258934,1780707073000,-1555.5,0.00038091,7]